fUSD/lending_fUSD_20250119
["ID","MTS","AMOUNT","RATE_DAILY","PERIOD"]
[349611264,1737327630650,-492.72004038,0.00015,2]
[349611265,1737327941137,-358.74434182,0.00017,2]
[349611266,1737327986682,1593.76,0.00019056,30]
[349611268,1737328004094,-241.25565818,0.00017,2]
[349611269,1737328004118,-1087.86,0.00017389,2]
[349611270,1737328004144,-960.3980405,0.00018088,2]
[349611271,1737328004166,-2073.19835965,0.000187,2]
[349611273,1737328027015,194.76,0.00010137,2]
[349611287,1737328231586,-194.76,0.00016813,2]
[349611288,1737328231596,-200.22423199,0.0001837,2]
[349611289,1737328231608,-1.05205818,0.0001837,2]
[349611290,1737328231617,-318.54452662,0.00018371,2]
[349611291,1737328231630,-1160.01436331,0.00018371,2]
[349611292,1737328231639,-924.78563669,0.0001847,2]
[349611293,1737328231651,-75.21436331,0.0001847,2]
[349611294,1737328231660,-334.21,0.00018471,3]
[349611295,1737328231670,-203.68,0.00018471,2]
[349611296,1737328231680,-250.0,0.00018837,2]
[349611297,1737328231690,-1478.55888992,0.00018863,2]
[349611298,1737328231700,-152.24,0.00018955,2]
[349611299,1737328231709,-152.24,0.00018963,2]
[349611300,1737328231719,-152.24,0.00018972,2]
[349611301,1737328231728,-152.24,0.0001898,2]
[349611302,1737328231738,-152.24,0.00018989,2]
[349611303,1737328231747,-3746.42,0.00018993,2]
[349611304,1737328231757,-152.24,0.00018998,2]
[349611305,1737328231766,-300.0,0.00018999,2]
[349611306,1737328231776,-650.0,0.00019,2]
[349611307,1737328231789,-152.24,0.00019006,2]
[349611308,1737328231799,-152.24,0.00019015,2]
[349611309,1737328231808,-152.24,0.00019023,2]
[349611310,1737328231818,-152.24,0.00019032,2]
[349611311,1737328231827,-152.24,0.00019041,2]
[349611312,1737328231837,-324.15,0.00019047,2]
[349611313,1737328231847,-273.6,0.00019047,2]
[349611314,1737328231857,-152.24,0.00019049,2]
[349611315,1737328231871,-250.0,0.00019065,2]
[349611316,1737328231881,-903.48,0.00019065,2]
[349611317,1737328231890,-173.69,0.00019065,2]
[349611318,1737328231900,-500.0,0.0001915,2]
[349611319,1737328231911,-530.43,0.00019164,2]
[349611320,1737328231921,-7110.08674678,0.00019178,7]
[349611321,1737328231933,-1006.1552966,0.00019178,7]
[349611322,1737328231944,-255.97559429,0.00019178,7]
[349611323,1737328231956,-13764.12503026,0.00019178,7]
[349611324,1737328231967,-91.80695467,0.00019178,7]
[349611325,1737328231977,-1280.29,0.00019216,2]
[349611326,1737328231986,-554.67015029,0.00019315,2]
[349611327,1737328231996,-4309.10786478,0.0001932,2]
[349611328,1737328232008,-821.24910659,0.0001932,2]
[349611329,1737328232041,-7704.2232308,0.0001932,2]
[349611330,1737328232052,-11065.41979783,0.0001932,2]
[349611331,1737328232061,-250.0,0.00019415,2]
[349611332,1737328232071,-1129.26784943,0.00019416,2]
[349611333,1737328232080,-1379.1525531,0.00019549,2]
[349611334,1737328232092,-638.6994469,0.00019549,2]
[349611335,1737328232102,-277.54,0.00019549,2]
[349611336,1737328232111,-179.195,0.00019549,2]
[349611337,1737328232121,-6835.82,0.00019571,2]
[349611338,1737328232131,-418.95,0.00019586,2]
[349611339,1737328232140,-5440.74,0.00019621,2]
[349611340,1737328232150,-1087.86,0.00019653,2]
[349611341,1737328232159,-173.02,0.00019665,2]
[349611342,1737328232169,-1000.0,0.00019726,14]
[349611343,1737328232178,-26215.0,0.0001976,2]
[349611344,1737328232187,-200.39040058,0.000199,2]
[349611345,1737328232197,-420.05714875,0.0002,14]
[349611346,1737328232245,-579.94285125,0.0002,14]
[349611347,1737328232255,-2037.36,0.00020145,2]
[349611348,1737328232265,-168.49,0.00020155,2]
[349611349,1737328232275,-2007.6291,0.00020316,2]
[349611350,1737328232290,-1714.32,0.00020368,2]
[349611351,1737328232300,-1347.68,0.00020368,2]
[349611352,1737328232311,-5121.82376897,0.00020416,2]
[349611353,1737328236077,-9203.25639999,0.00020416,2]
[349611354,1737328236174,-2380.72023104,0.00020416,2]
[349611355,1737328236184,-1002.4406,0.00020416,2]
[349611356,1737328236194,-1000.0,0.00020416,2]
[349611357,1737328236203,-6145.7491,0.00020416,2]
[349611358,1737328236212,-602.51947369,0.00020416,2]
[349611359,1737328236221,-171.44,0.00020423,2]
[349611360,1737328236231,-395.251,0.00020468,2]
[349611361,1737328236240,-1017.85216068,0.00020469,2]
[349611362,1737328236249,-55555.0,0.00020469,2]
[349611363,1737328236258,-602.51947355,0.00020494,2]
[349611364,1737328236267,-650.9,0.00020506,2]
[349611365,1737328236276,-500.0,0.00020515,2]
[349611366,1737328236289,-500.0,0.00020515,2]
[349611367,1737328236298,-500.0,0.00020515,2]
[349611368,1737328236308,-500.0,0.00020515,2]
[349611369,1737328236317,-500.0,0.00020515,2]
[349611370,1737328236326,-500.0,0.00020515,2]
[349611371,1737328236335,-509.58399716,0.00020515,2]
[349611372,1737328236344,-514.22826867,0.00020515,2]
[349611373,1737328236353,-500.0,0.00020515,2]
[349611374,1737328236363,-94450.0861,0.00020516,2]
[349611375,1737328236372,-245.72396977,0.00020516,2]
[349611376,1737328236381,-650.9,0.00020557,2]
[349611377,1737328236390,-650.9,0.00020558,2]
[349611378,1737328236399,-650.9,0.00020558,2]
[349611379,1737328236408,-42.94246283,0.00020559,2]
[349611380,1737328236420,-607.95753717,0.00020559,2]
[349611381,1737328236429,-500.0,0.00020567,2]
[349611382,1737328236439,-366.18984474,0.00020567,2]
[349611383,1737328236451,-133.81015526,0.00020567,2]
[349611384,1737328236460,-293.04175515,0.00020567,2]
[349611385,1737328236470,-500.0,0.00020567,2]
[349611386,1737328236479,-500.0,0.00020567,2]
[349611387,1737328236488,-500.0,0.00020567,2]
[349611388,1737328236498,-500.0,0.00020567,2]
[349611389,1737328236507,-568.6,0.00020567,2]
[349611390,1737328236516,-523.21,0.00020567,2]
[349611391,1737328236526,-500.0,0.00020567,2]
[349611392,1737328236539,-500.0,0.00020567,2]
[349611393,1737328236548,-172.97665586,0.00020567,2]
[349611394,1737328236557,-755.12,0.00020567,2]
[349611395,1737328236567,-500.0,0.00020567,2]
[349611396,1737328236576,-500.0,0.00020567,2]
[349611397,1737328236585,-500.0,0.00020567,2]
[349611398,1737328236595,-906.49,0.00020567,2]
[349611399,1737328236604,-500.0,0.00020567,2]
[349611400,1737328236613,-1091.43,0.00020567,2]
[349611401,1737328236622,-500.0,0.00020567,2]
[349611402,1737328236631,-500.0,0.00020567,2]
[349611403,1737328236640,-500.0,0.00020567,2]
[349611404,1737328236649,-500.0,0.00020567,2]
[349611405,1737328236658,-500.0,0.00020567,2]
[349611406,1737328236667,-500.0,0.00020567,2]
[349611407,1737328236676,-500.0,0.00020567,2]
[349611408,1737328236686,-500.0,0.00020567,2]
[349611409,1737328236695,-500.0,0.00020567,2]
[349611410,1737328236704,-500.0,0.00020567,2]
[349611411,1737328236713,-500.0,0.00020567,2]
[349611412,1737328236722,-500.0,0.00020567,2]
[349611413,1737328236731,-500.0,0.00020567,2]
[349611414,1737328236741,-500.0,0.00020567,2]
[349611415,1737328236750,-500.0,0.00020567,2]
[349611416,1737328236759,-500.0,0.00020568,2]
[349611417,1737328236768,-500.0,0.00020568,2]
[349611418,1737328236777,-500.0,0.00020568,2]
[349611419,1737328236789,-500.0,0.00020568,2]
[349611420,1737328236799,-500.0,0.00020568,2]
[349611421,1737328236808,-500.0,0.00020568,2]
[349611422,1737328236817,-500.0,0.00020568,2]
[349611423,1737328236827,-500.0,0.00020568,2]
[349611424,1737328236836,-500.0,0.00020568,2]
[349611425,1737328236845,-500.0,0.00020568,2]
[349611426,1737328236855,-500.0,0.00020568,2]
[349611427,1737328236865,-500.0,0.00020568,2]
[349611428,1737328236876,-500.0,0.00020568,2]
[349611429,1737328236886,-500.0,0.00020568,2]
[349611430,1737328236895,-500.0,0.00020568,2]
[349611431,1737328236904,-500.0,0.00020568,2]
[349611432,1737328236915,-500.0,0.00020568,2]
[349611433,1737328236925,-500.0,0.00020568,2]
[349611434,1737328236934,-500.0,0.00020568,2]
[349611435,1737328236944,-500.0,0.00020568,2]
[349611436,1737328236954,-500.0,0.00020568,2]
[349611437,1737328236964,-500.0,0.00020568,2]
[349611438,1737328236974,-500.0,0.00020568,2]
[349611439,1737328236983,-500.0,0.00020568,2]
[349611440,1737328236992,-500.0,0.00020568,2]
[349611441,1737328237002,-500.0,0.00020568,2]
[349611442,1737328237012,-500.0,0.00020568,2]
[349611443,1737328237021,-500.0,0.00020568,2]
[349611444,1737328237031,-500.0,0.00020568,2]
[349611445,1737328237043,-500.0,0.00020568,2]
[349611446,1737328237052,-500.0,0.00020568,2]
[349611447,1737328237062,-500.0,0.00020568,2]
[349611448,1737328237071,-209.90547529,0.00020568,2]
[349611449,1737328237081,-187.35127176,0.00020568,2]
[349611450,1737328237090,-500.0,0.00020568,2]
[349611451,1737328237100,-500.0,0.00020568,2]
[349611452,1737328237109,-500.0,0.00020568,2]
[349611453,1737328237119,-500.0,0.00020568,2]
[349611454,1737328237128,-500.0,0.00020568,2]
[349611455,1737328237278,-500.0,0.00020568,2]
[349611456,1737328237293,-500.0,0.00020568,2]
[349611460,1737328237303,-500.0,0.00020568,2]
[349611463,1737328237313,-500.0,0.00020568,2]
[349611466,1737328237323,-500.0,0.00020568,2]
[349611468,1737328237333,-500.0,0.00020568,2]
[349611471,1737328237343,-500.0,0.00020568,2]
[349611474,1737328237352,-500.0,0.00020568,2]
[349611476,1737328237363,-500.0,0.00020568,2]
[349611479,1737328237373,-500.0,0.00020568,2]
[349611481,1737328237383,-500.0,0.00020568,2]
[349611483,1737328237393,-500.0,0.00020568,2]
[349611484,1737328237402,-500.0,0.00020568,2]
[349611485,1737328237413,-500.0,0.00020568,2]
[349611486,1737328237423,-500.0,0.00020568,2]
[349611487,1737328237432,-326.68374978,0.00020568,2]
[349611488,1737328237443,-500.0,0.00020568,2]
[349611489,1737328237453,-360.50911379,0.00020568,2]
[349611490,1737328237463,-465.7527672,0.00020568,2]
[349611491,1737328237474,-214.13525167,0.00020568,2]
[349611492,1737328237484,-329.75152437,0.00020568,2]
[349611493,1737328237494,-500.0,0.00020568,2]
[349611494,1737328237504,-500.0,0.00020568,2]
[349611495,1737328237514,-200.0,0.00020568,2]
[349611496,1737328237524,-500.0,0.00020568,2]
[349611497,1737328237537,-500.0,0.00020568,2]
[349611498,1737328237546,-500.0,0.00020568,2]
[349611499,1737328237555,-500.0,0.00020568,2]
[349611500,1737328237565,-500.0,0.00020568,2]
[349611501,1737328237578,-500.0,0.00020568,2]
[349611502,1737328237588,-500.0,0.00020568,2]
[349611503,1737328237597,-500.0,0.00020568,2]
[349611504,1737328237607,-500.0,0.00020568,2]
[349611505,1737328237616,-500.0,0.00020568,2]
[349611506,1737328237625,-503.14,0.00020568,2]
[349611507,1737328237635,-500.0,0.00020568,2]
[349611508,1737328237644,-500.0,0.00020568,2]
[349611509,1737328237654,-500.0,0.00020568,2]
[349611510,1737328237663,-500.0,0.00020568,2]
[349611511,1737328237673,-500.0,0.00020568,2]
[349611512,1737328237682,-500.0,0.00020568,2]
[349611513,1737328237691,-635.92719637,0.00020568,2]
[349611514,1737328237700,-500.0,0.00020568,2]
[349611515,1737328237710,-500.0,0.00020568,2]
[349611516,1737328237720,-500.0,0.00020568,2]
[349611517,1737328237731,-500.0,0.00020568,2]
[349611518,1737328237741,-500.0,0.00020568,2]
[349611519,1737328237751,-500.0,0.00020568,2]
[349611520,1737328237760,-500.0,0.00020568,2]
[349611521,1737328237770,-500.0,0.00020568,2]
[349611522,1737328237780,-500.0,0.00020568,2]
[349611523,1737328237793,-500.0,0.00020568,2]
[349611524,1737328237803,-509.53749571,0.00020568,2]
[349611525,1737328237812,-500.0,0.00020568,2]
[349611527,1737328237821,-500.0,0.00020568,2]
[349611529,1737328237830,-500.0,0.00020568,2]
[349611531,1737328237840,-500.0,0.00020568,2]
[349611533,1737328237850,-500.0,0.00020568,2]
[349611535,1737328237860,-500.0,0.00020568,2]
[349611536,1737328237872,-500.0,0.00020568,2]
[349611537,1737328237882,-500.0,0.00020568,2]
[349611538,1737328237891,-500.0,0.00020568,2]
[349611539,1737328237901,-500.0,0.00020568,2]
[349611540,1737328237912,-500.0,0.00020568,2]
[349611541,1737328237921,-500.0,0.00020568,2]
[349611542,1737328237931,-500.0,0.00020568,2]
[349611543,1737328237940,-327.82826302,0.00020568,2]
[349611544,1737328237949,-500.0,0.00020568,2]
[349611545,1737328237961,-500.0,0.00020568,2]
[349611546,1737328237970,-500.0,0.00020568,2]
[349611547,1737328237979,-500.0,0.00020568,2]
[349611548,1737328237989,-504.36872772,0.00020568,2]
[349611549,1737328237999,-500.0,0.00020568,2]
[349611550,1737328238008,-500.0,0.00020568,2]
[349611551,1737328238018,-500.0,0.00020568,2]
[349611552,1737328238028,-500.0,0.00020568,2]
[349611553,1737328238040,-500.0,0.00020568,2]
[349611554,1737328238049,-500.0,0.00020568,2]
[349611555,1737328238058,-500.0,0.00020568,2]
[349611556,1737328238068,-500.0,0.00020568,2]
[349611557,1737328238077,-549.38900811,0.00020568,2]
[349611558,1737328238087,-500.0,0.00020568,2]
[349611559,1737328238096,-500.0,0.00020568,2]
[349611560,1737328238106,-500.0,0.00020568,2]
[349611561,1737328238115,-500.0,0.00020568,2]
[349611562,1737328238124,-500.0,0.00020568,2]
[349611563,1737328238134,-500.0,0.00020568,2]
[349611564,1737328238143,-500.0,0.00020568,2]
[349611565,1737328238153,-500.0,0.00020568,2]
[349611566,1737328238162,-500.0,0.00020568,2]
[349611567,1737328238171,-500.0,0.00020568,2]
[349611568,1737328238181,-500.0,0.00020568,2]
[349611569,1737328238190,-500.0,0.00020568,2]
[349611570,1737328238200,-500.0,0.00020568,2]
[349611571,1737328238209,-159.659694,0.00020568,2]
[349611572,1737328238218,-500.0,0.00020568,2]
[349611573,1737328238228,-159.935518,0.00020568,2]
[349611574,1737328238238,-500.0,0.00020568,2]
[349611575,1737328238248,-500.0,0.00020568,2]
[349611576,1737328238258,-367.41983522,0.00020568,2]
[349611577,1737328238268,-500.0,0.00020568,2]
[349611578,1737328238277,-500.0,0.00020568,2]
[349611579,1737328238290,-500.0,0.00020568,2]
[349611580,1737328238299,-523.56,0.00020568,2]
[349611581,1737328238309,-500.0,0.00020568,2]
[349611582,1737328238319,-500.0,0.00020568,2]
[349611583,1737328238329,-500.0,0.00020568,2]
[349611584,1737328238338,-505.12863567,0.00020568,2]
[349611585,1737328238348,-500.0,0.00020568,2]
[349611586,1737328238358,-732.395077,0.00020568,2]
[349611587,1737328238367,-168.89798822,0.00020568,2]
[349611588,1737328238377,-511.27,0.00020568,2]
[349611589,1737328238387,-500.0,0.00020568,2]
[349611590,1737328238397,-521.95,0.00020568,2]
[349611591,1737328238406,-500.0,0.00020568,2]
[349611592,1737328238415,-500.0,0.00020568,2]
[349611593,1737328238425,-500.0,0.00020568,2]
[349611594,1737328238435,-500.0,0.00020568,2]
[349611595,1737328238444,-500.0,0.00020568,2]
[349611596,1737328238454,-500.0,0.00020568,2]
[349611597,1737328238463,-500.0,0.00020568,2]
[349611598,1737328238473,-329.36552531,0.00020568,2]
[349611599,1737328238482,-500.0,0.00020568,2]
[349611600,1737328238492,-500.0,0.00020568,2]
[349611601,1737328238502,-500.0,0.00020568,2]
[349611602,1737328238511,-500.0,0.00020568,2]
[349611603,1737328238521,-591.91,0.00020568,2]
[349611604,1737328238530,-743.56,0.00020568,2]
[349611605,1737328238544,-587.73,0.00020568,2]
[349611606,1737328238553,-500.0,0.00020568,2]
[349611607,1737328238562,-500.0,0.00020568,2]
[349611608,1737328238572,-414.25658886,0.00020568,2]
[349611609,1737328238581,-500.0,0.00020568,2]
[349611610,1737328238591,-1047.97,0.00020568,2]
[349611611,1737328238600,-500.0,0.00020568,2]
[349611612,1737328238609,-500.0,0.00020568,2]
[349611613,1737328238618,-500.0,0.00020568,2]
[349611614,1737328238628,-798.47,0.00020568,2]
[349611615,1737328238639,-500.0,0.00020568,2]
[349611616,1737328238651,-500.0,0.00020568,2]
[349611617,1737328238660,-500.0,0.00020568,2]
[349611618,1737328238670,-500.0,0.00020568,2]
[349611619,1737328238679,-500.0,0.00020568,2]
[349611620,1737328238688,-196.502556,0.00020568,2]
[349611621,1737328238697,-500.0,0.00020568,2]
[349611622,1737328238706,-500.0,0.00020568,2]
[349611623,1737328238716,-957.32,0.00020568,2]
[349611624,1737328238725,-500.0,0.00020568,2]
[349611625,1737328238735,-500.0,0.00020568,2]
[349611626,1737328238744,-500.0,0.00020568,2]
[349611627,1737328238753,-500.0,0.00020568,2]
[349611628,1737328238763,-500.0,0.00020568,2]
[349611629,1737328238772,-500.0,0.00020568,2]
[349611630,1737328238781,-500.0,0.00020568,2]
[349611631,1737328238794,-500.0,0.00020568,2]
[349611632,1737328238803,-1467.36,0.00020568,2]
[349611633,1737328238812,-500.0,0.00020568,2]
[349611634,1737328238822,-500.0,0.00020568,2]
[349611635,1737328238845,-175.04944842,0.00020568,2]
[349611636,1737328238854,-500.0,0.00020568,2]
[349611637,1737328238865,-500.0,0.00020568,2]
[349611638,1737328238878,-500.0,0.00020568,2]
[349611639,1737328238887,-500.0,0.00020568,2]
[349611640,1737328238896,-500.0,0.00020568,2]
[349611641,1737328238907,-500.0,0.00020568,2]
[349611642,1737328238918,-500.0,0.00020568,2]
[349611643,1737328238928,-500.0,0.00020568,2]
[349611644,1737328238938,-500.0,0.00020568,2]
[349611645,1737328238948,-500.0,0.00020568,2]
[349611646,1737328238957,-500.0,0.00020568,2]
[349611647,1737328238967,-512.1259345,0.00020568,2]
[349611648,1737328238976,-500.0,0.00020568,2]
[349611649,1737328238986,-549.51549002,0.00020568,2]
[349611650,1737328238996,-500.0,0.00020568,2]
[349611651,1737328239005,-1596.68,0.00020568,2]
[349611652,1737328239015,-500.0,0.00020568,2]
[349611653,1737328239027,-500.0,0.00020568,2]
[349611654,1737328239045,-500.0,0.00020568,2]
[349611655,1737328239056,-500.0,0.00020568,2]
[349611656,1737328239065,-500.0,0.00020568,2]
[349611657,1737328239074,-500.0,0.00020568,2]
[349611658,1737328239084,-500.0,0.00020568,2]
[349611659,1737328239093,-500.0,0.00020568,2]
[349611660,1737328239103,-500.0,0.00020568,2]
[349611661,1737328239112,-500.0,0.00020568,2]
[349611662,1737328239122,-728.69,0.00020568,2]
[349611663,1737328239132,-500.0,0.00020568,2]
[349611664,1737328239142,-501.75530091,0.00020568,2]
[349611665,1737328239152,-1048.3,0.00020568,2]
[349611666,1737328239162,-500.0,0.00020568,2]
[349611667,1737328239172,-506.99323013,0.00020568,2]
[349611668,1737328239182,-500.0,0.00020568,2]
[349611669,1737328239192,-500.0,0.00020568,2]
[349611670,1737328239203,-500.0,0.00020568,2]
[349611671,1737328239212,-500.0,0.00020568,2]
[349611672,1737328239222,-500.0,0.00020568,2]
[349611673,1737328239232,-500.0,0.00020568,2]
[349611674,1737328239242,-500.0,0.00020568,2]
[349611675,1737328239252,-332.8594034,0.00020568,2]
[349611676,1737328239262,-500.0,0.00020568,2]
[349611677,1737328239272,-884.56,0.00020568,2]
[349611678,1737328239282,-500.0,0.00020568,2]
[349611679,1737328239292,-500.0,0.00020568,2]
[349611680,1737328239301,-500.0,0.00020568,2]
[349611681,1737328239311,-500.0,0.00020568,2]
[349611682,1737328239321,-503.45541968,0.00020568,2]
[349611683,1737328239331,-500.0,0.00020568,2]
[349611684,1737328239340,-500.0,0.00020568,2]
[349611685,1737328239350,-500.0,0.00020568,2]
[349611686,1737328239361,-349.17230457,0.00020568,2]
[349611687,1737328239371,-500.0,0.00020568,2]
[349611688,1737328239380,-500.0,0.00020568,2]
[349611689,1737328239390,-500.0,0.00020568,2]
[349611690,1737328239400,-500.0,0.00020568,2]
[349611691,1737328239409,-500.0,0.00020568,2]
[349611692,1737328239419,-500.0,0.00020568,2]
[349611693,1737328239429,-505.67,0.00020568,2]
[349611694,1737328239438,-500.0,0.00020568,2]
[349611695,1737328239448,-500.0,0.00020568,2]
[349611696,1737328239457,-500.0,0.00020568,2]
[349611697,1737328239467,-500.0,0.00020568,2]
[349611698,1737328239476,-500.0,0.00020568,2]
[349611700,1737328239486,-500.0,0.00020568,2]
[349611701,1737328239497,-500.0,0.00020568,2]
[349611702,1737328239507,-500.0,0.00020568,2]
[349611703,1737328239516,-500.0,0.00020568,2]
[349611704,1737328239525,-500.0,0.00020568,2]
[349611705,1737328239537,-500.0,0.00020568,2]
[349611706,1737328239550,-1073.82,0.00020568,2]
[349611707,1737328239560,-500.0,0.00020568,2]
[349611708,1737328239570,-198.10050778,0.00020568,2]
[349611709,1737328239580,-500.0,0.00020568,2]
[349611710,1737328239594,-500.0,0.00020568,2]
[349611711,1737328239604,-500.0,0.00020568,2]
[349611712,1737328239613,-500.0,0.00020568,2]
[349611713,1737328239623,-500.0,0.00020568,2]
[349611714,1737328239632,-500.0,0.00020568,2]
[349611715,1737328239641,-500.0,0.00020568,2]
[349611716,1737328239650,-591.79,0.00020568,2]
[349611717,1737328239659,-528.01,0.00020568,2]
[349611718,1737328239670,-530.0062781,0.00020568,2]
[349611719,1737328239679,-508.64185421,0.00020568,2]
[349611720,1737328239688,-500.0,0.00020568,2]
[349611721,1737328239697,-1629.14,0.00020568,2]
[349611722,1737328239707,-508.34,0.00020568,2]
[349611723,1737328239717,-500.0,0.00020568,2]
[349611724,1737328239726,-500.0,0.00020568,2]
[349611725,1737328239736,-500.0,0.00020568,2]
[349611726,1737328239746,-511.49065013,0.00020568,2]
[349611727,1737328239755,-500.0,0.00020568,2]
[349611729,1737328239764,-500.0,0.00020568,2]
[349611731,1737328239774,-500.0,0.00020568,2]
[349611733,1737328239783,-500.0,0.00020568,2]
[349611735,1737328239798,-500.0,0.00020568,2]
[349611737,1737328239807,-500.0,0.00020568,2]
[349611739,1737328239817,-500.0,0.00020568,2]
[349611741,1737328239826,-501.58257268,0.00020568,2]
[349611744,1737328239836,-500.0,0.00020568,2]
[349611746,1737328239845,-500.0,0.00020568,2]
[349611748,1737328239855,-500.0,0.00020569,2]
[349611749,1737328239865,-500.0,0.00020569,2]
[349611752,1737328239877,-500.0,0.00020569,2]
[349611753,1737328239887,-500.0,0.00020569,2]
[349611754,1737328239895,-500.0,0.00020569,2]
[349611755,1737328239905,-500.0,0.00020569,2]
[349611756,1737328239916,-500.0,0.00020569,2]
[349611757,1737328239925,-500.0,0.00020569,2]
[349611758,1737328239934,-500.0,0.00020569,2]
[349611759,1737328239943,-500.0,0.00020569,2]
[349611760,1737328239953,-500.0,0.00020569,2]
[349611761,1737328239962,-500.0,0.00020569,2]
[349611762,1737328239971,-500.0,0.00020569,2]
[349611763,1737328239981,-500.0,0.00020569,2]
[349611764,1737328239990,-500.0,0.00020569,2]
[349611765,1737328239999,-500.0,0.00020569,2]
[349611766,1737328240008,-500.0,0.00020569,2]
[349611767,1737328240017,-500.0,0.00020569,2]
[349611768,1737328240026,-500.0,0.00020569,2]
[349611769,1737328240039,-500.0,0.00020569,2]
[349611770,1737328240049,-500.0,0.00020569,2]
[349611771,1737328240058,-500.0,0.00020569,2]
[349611772,1737328240069,-500.0,0.00020569,2]
[349611773,1737328240078,-500.0,0.00020569,2]
[349611774,1737328240087,-456.12223951,0.00020569,2]
[349611775,1737328240097,-500.0,0.00020569,2]
[349611776,1737328240106,-500.0,0.00020569,2]
[349611777,1737328240115,-500.0,0.00020569,2]
[349611778,1737328240125,-500.0,0.00020569,2]
[349611779,1737328240136,-500.0,0.00020569,2]
[349611780,1737328240146,-500.0,0.00020569,2]
[349611781,1737328240155,-500.0,0.00020569,2]
[349611782,1737328240165,-500.0,0.00020569,2]
[349611783,1737328240301,-500.0,0.00020569,2]
[349611784,1737328240310,-528.35586291,0.00020569,2]
[349611785,1737328240320,-500.0,0.00020569,2]
[349611786,1737328240329,-584.37610873,0.00020569,2]
[349611787,1737328240339,-485.30188789,0.00020569,2]
[349611788,1737328240349,-500.0,0.00020569,2]
[349611789,1737328240358,-500.0,0.00020569,2]
[349611790,1737328240368,-500.0,0.00020569,2]
[349611791,1737328240378,-500.0,0.00020569,2]
[349611792,1737328240388,-500.0,0.00020569,2]
[349611793,1737328240398,-500.0,0.00020569,2]
[349611794,1737328240407,-500.0,0.00020569,2]
[349611795,1737328240418,-500.0,0.00020569,2]
[349611796,1737328240429,-500.0,0.00020569,2]
[349611797,1737328240439,-500.0,0.00020569,2]
[349611798,1737328240448,-500.0,0.00020569,2]
[349611799,1737328240457,-500.0,0.00020569,2]
[349611800,1737328240466,-322.05834821,0.00020569,2]
[349611801,1737328240475,-507.67730018,0.00020569,2]
[349611802,1737328240485,-500.0,0.00020569,2]
[349611803,1737328240494,-500.0,0.00020569,2]
[349611804,1737328240503,-500.0,0.00020569,2]
[349611805,1737328240512,-503.94289847,0.00020569,2]
[349611806,1737328240522,-500.0,0.00020569,2]
[349611807,1737328240531,-520.11292154,0.00020569,2]
[349611808,1737328240546,-500.0,0.00020569,2]
[349611809,1737328240555,-500.0,0.00020569,2]
[349611810,1737328240565,-500.0,0.00020569,2]
[349611811,1737328240575,-500.0,0.00020569,2]
[349611812,1737328240585,-500.0,0.00020569,2]
[349611813,1737328240595,-500.0,0.00020569,2]
[349611814,1737328240604,-500.0,0.00020569,2]